bitfinex/quotes_ETHUSD_20240816
["timestamp","ask_amount","ask_price","bid_price","bid_amount"]
[1723840840571,3.81472,2621.5,2621.0,7.32]
[1723840840783,3.81472,2621.5,2620.9,2.3824]
[1723840840946,3.81505,2621.2,2620.7,0.12571062]
[1723840841159,3.81519,2621.1,2620.7,0.12571062]
[1723840841354,3.81498,2621.3,2620.7,0.75811968]
[1723840841569,3.81498,2621.3,2620.7,4.57379968]
[1723840841951,3.81498,2621.3,2620.7,8.38947968]
[1723840842403,3.81498,2621.3,2620.7,4.57379968]
[1723840842606,3.81498,2621.3,2620.8,0.69561997]
[1723840843165,3.8147,2621.5,2620.9,3.81541]
[1723840843503,2.3101,2621.6,2620.9,3.81541]
[1723840843504,6.12461,2621.6,2621.0,3.81529]
[1723840844207,2.3101,2621.6,2621.0,3.81529]
[1723840844765,3.81396,2622.0,2621.4,3.81466]
[1723840844970,3.0,2621.9,2621.4,3.81466]
[1723840845409,3.81388,2622.0,2621.4,3.81466]
[1723840845567,3.0,2621.9,2621.4,3.81466]
[1723840845763,0.681364,2622.1,2621.4,3.81466]
[1723840846102,0.681364,2622.1,2621.4,4.434366]
[1723840846103,3.8139,2622.0,2621.4,4.434366]
[1723840846305,3.8139,2622.0,2621.4,3.81466]
[1723840847006,3.0,2622.1,2621.5,3.81459]
[1723840847308,3.81404,2621.9,2621.4,3.81466]
[1723840847610,3.81418,2621.8,2621.2,2.3824]
[1723840847991,3.81402,2621.9,2621.3,3.81482]
[1723840848167,3.81402,2621.9,2621.3,3.8148]
[1723840848603,3.81402,2621.9,2621.2,2.3824]
[1723840848976,3.81417,2621.8,2621.2,6.19735]
[1723840849307,3.81417,2621.8,2621.3,3.81489]
[1723840850311,3.81417,2621.8,2621.2,2.3824]
[1723840850510,3.81468,2621.5,2620.9,3.81542]
[1723840850681,3.81447,2621.6,2621.0,3.8153]
[1723840850880,3.81447,2621.6,2621.1,0.38153]
[1723840851208,3.81447,2621.6,2621.0,3.8153]
[1723840851363,3.81468,2621.5,2621.0,3.8153]
[1723840851565,2.3326,2621.7,2620.7,7.44571062]
[1723840851771,3.81498,2621.3,2620.7,3.94139062]
[1723840852081,3.81506,2621.2,2620.7,3.94139062]
[1723840852466,3.81519,2621.1,2620.7,0.12571062]
[1723840852669,3.81506,2621.2,2620.7,3.94146062]
[1723840852866,3.81506,2621.2,2620.7,0.12571062]
[1723840853506,7.63019,2621.2,2620.7,0.12571062]
[1723840853713,0.763019,2621.1,2620.7,0.12571062]
[1723840853910,7.63024,2621.2,2620.7,0.12571062]
[1723840854592,3.81519,2621.1,2620.7,0.12571062]
[1723840854910,3.81537,2621.0,2620.7,0.12571062]
[1723840855114,3.81562,2620.8,2620.7,0.12571062]
[1723840855313,7.63082,2621.0,2620.7,0.12571062]
[1723840856195,3.81562,2620.8,2620.7,0.12571062]
[1723840856397,3.8151,2621.2,2620.7,2.40941062]
[1723840858542,3.81455,2621.6,2621.0,3.8152]
[1723840858743,3.81462,2621.5,2621.0,0.38152]
[1723840859050,7.62909,2621.6,2621.1,3.81518]
[1723840859228,7.62909,2621.6,2621.2,0.381518]
[1723840859229,3.81454,2621.6,2621.2,0.381518]
[1723840859434,3.81454,2621.6,2621.1,3.81518]
[1723840859727,3.81423,2621.8,2621.1,3.81509]
[1723840859909,3.81433,2621.7,2621.2,6.24236]
[1723840860298,3.81423,2621.8,2621.2,3.433145]
[1723840860505,3.88007961,2622.0,2621.5,3.81447]
[1723840860702,7.69406961,2622.0,2621.5,3.81447]
[1723840860954,2.3295,2622.2,2621.2,2.4274]
[1723840861116,2.3295,2622.2,2621.2,6.24243]
[1723840861117,3.81439,2621.7,2621.2,6.24243]
[1723840861309,7.62878,2621.7,2621.2,6.24243]
[1723840861727,3.81439,2621.7,2621.2,6.24243]
[1723840861935,7.62879,2621.7,2621.2,6.24243]
[1723840862255,3.81449,2621.6,2620.9,6.24278]
[1723840862549,3.81511,2621.2,2620.8,7.32]
[1723840862841,3.81511,2621.2,2620.8,0.74457106]
[1723840863206,3.81534,2621.0,2620.7,0.12571062]
[1723840863530,3.81481,2621.4,2620.7,3.94144062]
[1723840863744,3.81505,2621.2,2620.8,0.63688406]
[1723840863940,3.81481,2621.4,2620.8,0.63688406]
[1723840864263,3.81493,2621.3,2620.8,0.63688406]
[1723840865955,3.81457,2621.6,2621.1,3.81507]
[1723840866318,7.62911,2621.6,2621.0,3.81528]
[1723840866654,7.62911,2621.6,2621.1,1.08974395]
[1723840866655,7.62908,2621.6,2621.1,1.08974395]
[1723840866848,3.81454,2621.6,2621.1,1.08974395]
[1723840867558,3.81454,2621.6,2621.1,4.90491395]
[1723840868055,3.81454,2621.6,2621.2,2.4274]
[1723840868231,7.62908,2621.6,2621.2,3.1606314]
[1723840868558,7.62908,2621.6,2621.2,2.4274]
[1723840868914,3.81454,2621.6,2621.2,2.4274]
[1723840869715,7.62914,2621.6,2621.2,2.4274]
[1723840870155,3.81454,2621.6,2621.2,2.4274]
[1723840870525,3.81425,2621.8,2621.2,3.1606264]
[1723840870761,3.81432,2621.7,2621.2,3.1606264]
[1723840870914,3.81425,2621.8,2621.2,3.1606264]
[1723840871559,3.81432,2621.7,2621.2,6.9756564]
[1723840873167,6.81403,2621.9,2621.4,3.81466]
[1723840873335,3.81419,2621.8,2621.3,4.89383664]
[1723840873520,3.81419,2621.8,2621.3,3.81476]
[1723840875028,3.0,2621.9,2621.0,7.32]
[1723840875029,2.4497,2621.7,2621.0,7.32]
[1723840875178,3.81514,2621.2,2620.7,3.94140062]
[1723840875378,0.24497,2621.6,2620.8,2.3095]
[1723840875563,3.81453,2621.6,2621.1,3.81518]
[1723840875964,3.81472,2621.5,2620.9,3.81538]
[1723840876148,3.81472,2621.5,2621.0,3.81533]
[1723840876485,3.81427,2621.8,2621.2,2.3095]
[1723840876775,6.81396,2622.0,2621.3,4.04572]
[1723840876979,7.62854,2621.8,2621.2,6.12454]
[1723840877277,3.81433,2621.7,2621.2,6.12454]
[1723840877637,7.62855,2621.8,2621.2,6.12454]
[1723840877986,3.81439,2621.7,2621.2,7.118513]
[1723840882254,3.81439,2621.7,2621.2,7.118413]
[1723840883144,7.62883,2621.7,2621.2,7.118413]
[1723840883641,3.81439,2621.7,2621.2,7.118413]
[1723840883984,3.81439,2621.7,2621.3,0.7118413]
[1723840884535,3.81447,2621.6,2621.3,0.7118413]
[1723840884735,3.81447,2621.6,2621.2,7.118413]
[1723840885179,3.81413,2621.9,2621.2,7.118413]
[1723840885180,3.81432,2621.7,2621.2,7.118413]
[1723840885537,5.80289201,2622.0,2621.2,3.303473]
[1723840885750,3.81476,2621.4,2620.9,13.48027]
[1723840885958,3.81476,2621.4,2620.9,15.82339306]
[1723840886245,3.81476,2621.4,2621.0,3.81531]
[1723840886470,3.81476,2621.4,2620.9,4.68792306]
[1723840886471,7.62959,2621.4,2620.9,8.50340306]
[1723840886672,3.81503,2621.3,2620.9,4.68792306]
[1723840886877,3.81503,2621.3,2621.0,0.46879231]
[1723840888293,7.63004,2621.3,2621.0,0.46879231]
[1723840888459,3.81501,2621.3,2620.9,2.3448]
[1723840889339,7.63,2621.3,2620.9,2.3448]
[1723840889780,3.81498,2621.3,2620.9,2.3448]
[1723840890183,3.81535,2621.0,2620.7,0.12571062]
[1723840890495,7.63124,2620.8,2620.7,0.12571062]
[1723840890849,14.29136,2620.8,2620.7,0.12571062]
[1723840891044,23.09831625,2620.8,2620.7,0.12571062]
[1723840891347,21.10698,2620.8,2620.7,6.2e-07]
[1723840891990,24.9226,2620.8,2620.7,6.2e-07]
[1723840892286,3.8173,2619.7,2619.3,2.3448]
[1723840892491,3.8173,2619.7,2619.0,6.2804]
[1723840892698,3.81751,2619.6,2618.9,3.81831]
[1723840893004,3.81732,2619.7,2619.0,1.009906]
[1723840893005,3.81752,2619.5,2619.0,1.009906]
[1723840893659,3.81752,2619.5,2619.0,4.828106]
[1723840894577,7.63408,2619.9,2619.3,6.28003]
[1723840894796,7.63404,2619.9,2619.3,6.28003]
[1723840895004,3.81711,2619.8,2619.3,2.4623]
[1723840895173,3.8175,2619.6,2619.1,0.4828106]
[1723840895368,3.81723,2619.7,2619.1,3.818]
[1723840895699,5.3986,2620.1,2619.4,3.81758]
[1723840895903,3.81658,2620.2,2619.3,2.4623]
[1723840896207,3.81672,2620.1,2619.5,2.4623]
[1723840896412,3.81643,2620.3,2619.7,3.81715]
[1723840896716,3.81611,2620.5,2619.6,0.6907983]
[1723840897019,3.81611,2620.5,2619.5,2.4623]
[1723840897020,3.81611,2620.5,2619.9,3.81679]
[1723840897196,6.21438,2620.7,2620.0,6.27899]
[1723840897197,3.81601,2620.6,2620.0,6.27899]
[1723840897387,2.3986,2620.7,2620.0,6.27899]
[1723840897388,3.81585,2620.7,2620.0,2.4623]
[1723840897630,3.81585,2620.7,2620.1,3.81656]
[1723840898080,3.81569,2620.8,2620.0,2.7466979]
[1723840898424,3.81542,2621.0,2620.3,3.81622]
[1723840898570,3.81542,2621.0,2620.4,4.197802]
[1723840898771,3.81542,2621.0,2620.4,0.381622]
[1723840899009,3.8151,2621.2,2620.4,0.381622]
[1723840899171,3.8151,2621.2,2620.5,3.81596]
[1723840899374,3.8151,2621.2,2620.6,6.27811]
[1723840900075,7.63023,2621.2,2620.6,6.27811]
[1723840900267,3.81533,2621.0,2620.6,2.4623]
[1723840900473,0.763023,2621.2,2620.2,2.4623]
[1723840900708,3.81573,2620.8,2620.2,6.2787]
[1723840901016,3.81551,2620.9,2620.3,3.81634]
[1723840901372,3.81528,2621.1,2620.4,3.8162]
[1723840901574,3.81496,2621.3,2620.6,3.81583]
[1723840902020,3.81496,2621.3,2620.6,6.30813]
[1723840902524,3.81506,2621.2,2620.6,6.30813]
[1723840903216,3.81496,2621.3,2620.6,6.30813]
[1723840903413,3.81468,2621.5,2620.7,0.630813]
[1723840903619,3.81468,2621.5,2620.6,2.4923]
[1723840903620,3.81468,2621.5,2620.9,3.81534]
[1723840903805,7.62943,2621.5,2620.9,3.81534]
[1723840904010,3.81476,2621.4,2620.9,3.81534]
[1723840904175,3.81476,2621.4,2620.8,7.63102]
[1723840904374,3.81468,2621.5,2620.8,0.57345063]
[1723840904584,3.81448,2621.6,2621.1,3.81517]
[1723840904898,3.81448,2621.6,2621.1,2.4923]
[1723840905282,3.81448,2621.6,2620.6,2.4923]
[1723840905283,2.4196,2621.4,2620.6,2.4923]
[1723840905619,3.81504,2621.2,2620.6,6.30808]
[1723840905801,1.062885,2621.6,2620.4,7.32]
[1723840905802,3.81527,2621.1,2620.4,7.32]
[1723840905977,7.63002,2621.3,2620.5,3.81594]
[1723840906327,3.81499,2621.3,2620.8,6.21212]
[1723840906624,3.81461,2621.5,2620.9,4.818188]
[1723840906776,7.62932,2621.5,2620.9,3.8154]
[1723840907087,7.62934,2621.5,2620.9,3.8154]
[1723840907287,7.62934,2621.5,2620.9,7.63079]
[1723840907288,0.762934,2621.4,2620.9,7.63079]
[1723840907506,3.81461,2621.5,2620.9,3.81539]
[1723840907820,3.81485,2621.4,2620.9,3.81539]
[1723840907979,3.81485,2621.4,2620.8,6.21208]
[1723840908176,4.577896,2621.3,2620.8,6.21208]
[1723840908516,3.8152,2621.1,2620.5,3.81594]
[1723840908701,8.640136,2621.1,2620.6,3.81591]
[1723840909016,7.63049,2621.1,2620.6,3.81591]
[1723840909227,7.63046,2621.1,2620.6,3.81591]
[1723840909375,3.8152,2621.1,2620.6,3.81591]
[1723840910222,3.81535,2621.0,2620.4,17.34879]
[1723840910423,0.38152,2621.0,2620.5,3.81597]
[1723840910979,4.19688,2621.0,2620.4,13.53259]
[1723840911179,4.19688,2621.0,2620.4,17.34871]
[1723840911389,4.19688,2621.0,2620.5,3.81601]
[1723840911714,4.616698,2620.9,2620.4,9.7165]
[1723840912018,3.8157,2620.8,2620.4,2.3965]
[1723840912199,3.8157,2620.8,2620.2,6.2129]
[1723840912409,3.8157,2620.8,2620.2,10.0293]
[1723840913278,4.616971,2620.8,2620.2,10.02931]
[1723840913618,4.616971,2620.8,2620.2,6.2129]
[1723840913979,0.801271,2620.8,2620.3,3.81628]
[1723840914203,3.81549,2620.9,2620.3,3.81628]
[1723840914404,3.81528,2621.1,2620.5,3.81592]
[1723840914729,3.81528,2621.1,2620.6,4.197382]
[1723840914879,3.81528,2621.1,2620.6,3.81579]
[1723840915516,3.81491,2621.3,2620.8,3.8156]
[1723840915717,2.3786,2621.6,2620.9,3.81541]
[1723840915718,3.81472,2621.5,2620.9,3.81541]
[1723840916017,3.81476,2621.4,2620.9,3.81541]
[1723840916580,3.81476,2621.4,2620.9,3.8154]
[1723840917523,3.81492,2621.3,2620.7,10.00442]
[1723840917678,4.196396,2621.3,2620.7,3.81563]
[1723840918480,3.81507,2621.2,2620.5,11.13595]
[1723840918682,2.7885396,2621.2,2620.5,7.32]
[1723840918878,3.81579,2620.7,2620.5,7.32]
[1723840919132,3.81579,2620.7,2620.2,3.81641]
[1723840919623,3.81558,2620.9,2620.3,3.81633]
[1723840919624,3.81565,2620.8,2620.3,3.81633]
[1723840920081,3.81577,2620.7,2620.2,1.39203379]
[1723840920285,3.81577,2620.7,2620.1,6.31594]
[1723840920286,7.63168,2620.7,2620.1,6.31594]
[1723840920487,3.81577,2620.7,2620.2,3.81649]
[1723840920711,3.81592,2620.6,2620.1,6.31594]
[1723840920919,3.81615,2620.5,2620.0,3.81671]
[1723840921099,3.81615,2620.5,2620.0,3.81669]
[1723840921399,3.81584,2620.7,2620.0,3.81669]
[1723840921619,3.81584,2620.7,2620.0,4.829997]
[1723840921829,9.18426,2621.0,2620.0,3.81669]
[1723840922130,7.63171,2620.7,2620.0,3.81669]
[1723840922335,3.81595,2620.6,2620.1,3.81662]
[1723840923423,6.18441,2620.9,2620.1,0.763331]
[1723840923618,3.81575,2620.8,2620.2,3.81642]
[1723840923928,3.8161,2620.5,2620.0,3.81669]
[1723840924099,3.81592,2620.6,2619.9,4.06675]
[1723840924283,3.81592,2620.6,2620.0,0.656615]
[1723840924488,3.81592,2620.6,2620.1,3.81664]
[1723840924999,3.81592,2620.6,2620.1,7.63321]
[1723840925214,3.81574,2620.8,2620.1,3.81657]
[1723840925431,3.81628,2620.4,2619.8,6.31639]
[1723840926099,3.81628,2620.4,2619.8,6.31636]
[1723840926304,3.81636,2620.3,2619.8,6.31636]
[1723840926498,4.197908,2620.4,2619.8,10.13335]
[1723840926720,4.197908,2620.4,2619.9,3.81693]
[1723840927677,4.734119,2620.8,2620.2,3.81642]
[1723840927831,3.81579,2620.7,2620.2,3.81642]
[1723840927989,5.115826,2620.7,2620.2,3.81642]
[1723840928545,3.81594,2620.6,2620.0,3.81671]
[1723840929107,3.81599,2620.6,2620.0,7.63342]
[1723840929415,3.81614,2620.5,2620.0,3.81677]
[1723840929737,7.63176,2620.7,2620.0,3.81671]
[1723840929902,7.63176,2620.7,2620.1,3.81661]
[1723840930228,3.81585,2620.7,2620.0,3.81671]
[1723840930429,3.81585,2620.7,2619.8,2.4994]
[1723840930630,3.81585,2620.7,2620.2,3.81649]
[1723840931483,3.81585,2620.7,2620.1,3.81651]
[1723840931975,3.81594,2620.6,2620.1,3.81651]
[1723840933221,3.81594,2620.6,2620.1,7.63308]
[1723840933442,3.81594,2620.6,2620.1,3.81651]
[1723840934437,3.81594,2620.6,2620.1,7.63304]
[1723840934652,3.81585,2620.7,2620.2,3.81649]
[1723840936225,3.81592,2620.6,2620.2,3.81649]
[1723840937074,3.81592,2620.6,2620.1,3.81664]
[1723840938238,4.579085,2620.6,2620.1,3.81664]
[1723840938564,8.395115,2620.6,2620.1,3.81664]
[1723840938954,4.579085,2620.6,2620.1,3.81657]
[1723840939367,3.81592,2620.6,2620.2,3.81649]
[1723840939577,3.81592,2620.6,2620.1,3.81657]
[1723840939927,3.81592,2620.6,2619.9,3.81684]
[1723840940172,3.81628,2620.4,2619.9,3.81684]
[1723840940334,4.81957,2620.4,2619.9,3.81684]
[1723840941132,3.81628,2620.4,2619.9,3.81684]
[1723840941768,3.81628,2620.4,2619.9,7.6337]
[1723840941966,3.81628,2620.4,2619.9,3.81684]
[1723840942372,3.81636,2620.3,2619.8,6.31648]
[1723840943539,2.4007,2620.5,2619.9,3.81693]
[1723840943771,3.81624,2620.4,2619.9,3.81693]
[1723840944564,3.81624,2620.4,2619.9,7.63379]
[1723840944776,3.81624,2620.4,2619.9,3.81686]
[1723840945878,3.81624,2620.4,2619.9,7.6337]
[1723840946093,3.81624,2620.4,2620.0,1.187846]
[1723840947103,3.81624,2620.4,2620.0,5.004626]
[1723840948732,3.81607,2620.5,2620.0,5.004626]
[1723840948909,3.81607,2620.5,2620.0,3.81678]
[1723840954368,3.81607,2620.5,2620.1,3.81664]
[1723840954758,3.81607,2620.5,2619.9,3.81685]
[1723840955108,4.43803297,2620.4,2619.6,7.32]
[1723840955317,3.81694,2619.9,2619.6,7.32]
[1723840955457,3.81642,2620.3,2619.8,3.81697]
[1723840956609,3.81642,2620.3,2619.7,2.443]
[1723840956794,7.63288,2620.3,2619.7,6.26016]
[1723840956961,3.81642,2620.3,2619.8,3.81704]
[1723840957161,4.824358,2620.3,2619.8,3.81704]
[1723840957363,4.824358,2620.3,2619.8,3.817]
[1723840957589,4.824358,2620.3,2619.9,3.81692]
[1723840958014,3.81592,2620.6,2620.1,3.81664]
[1723840958219,3.81607,2620.5,2619.9,3.81679]
[1723840958509,3.81665,2620.1,2619.7,7.32]
[1723840958721,0.381665,2620.0,2619.5,7.63495]
[1723840959001,3.81665,2620.1,2619.6,3.81735]
[1723840959207,6.08118,2620.4,2619.8,3.81699]
[1723840959360,2.2649,2620.4,2619.8,3.81699]
[1723840959564,2.2649,2620.4,2619.8,7.63399]
[1723840959565,6.08113,2620.4,2619.8,7.63399]
[1723840959777,6.08113,2620.4,2619.8,10.10719]
[1723840960064,3.81614,2620.5,2619.8,7.300909]
[1723840960261,3.81614,2620.5,2620.0,3.81668]
[1723840961407,3.81614,2620.5,2620.0,7.63339]
[1723840961623,5.2649,2620.7,2620.1,3.81655]
[1723840961828,5.2649,2620.7,2620.2,2.3322]
[1723840961829,3.81578,2620.7,2620.2,2.3322]
[1723840962128,4.77821142,2620.7,2620.2,2.3322]
[1723840962697,8.59406142,2620.7,2620.2,2.3322]
[1723840963015,7.63163,2620.7,2620.2,2.3322]
[1723840963717,3.81578,2620.7,2620.2,2.3322]
[1723840964219,3.81578,2620.7,2620.2,6.1487]
[1723840964379,3.81578,2620.7,2620.2,9.9651]
[1723840964582,3.81578,2620.7,2620.2,6.1486]
[1723840964812,7.63164,2620.7,2620.1,3.81664]
[1723840965010,4.77826219,2620.7,2620.1,3.81664]
[1723840965322,8.59411219,2620.7,2620.1,3.81664]
[1723840966309,10.58977893,2620.7,2620.1,3.81664]
[1723840966625,8.59411219,2620.7,2620.1,3.81664]
[1723840966777,4.77826219,2620.7,2620.1,3.81664]
[1723840966977,3.81578,2620.7,2620.1,3.81664]
[1723840967208,1.99566674,2620.8,2620.1,3.81654]
[1723840967391,5.81092674,2621.1,2620.7,2.3423]
[1723840968330,7.15836942,2621.1,2620.7,2.3423]
[1723840969190,3.81545,2621.0,2620.4,6.15842]
[1723840969437,3.81549,2620.9,2620.4,2.3423]
[1723840969597,8.72847194,2620.9,2620.4,2.3423]
[1723840969794,3.81549,2620.9,2620.4,6.15848]
[1723840970337,3.81584,2620.7,2620.0,6.15898]
[1723840970551,3.81603,2620.6,2620.0,9.97569]
[1723840970719,3.81616,2620.5,2619.9,11.13685]
[1723840970898,3.81651,2620.2,2619.8,2.3423]
[1723840971096,0.763187,2620.5,2619.8,2.3423]
[1723840971326,3.81658,2620.2,2619.8,2.3423]
[1723840971512,7.6329,2620.3,2619.8,6.15938]
[1723840971905,3.81644,2620.3,2619.8,6.15938]
[1723840972120,7.6329,2620.3,2619.8,6.15938]
[1723840972509,3.8165,2620.2,2619.8,6.15938]
[1723840973040,3.81644,2620.3,2619.8,6.15938]
[1723840974530,3.81644,2620.3,2619.8,9.97646]
[1723840974731,3.81644,2620.3,2619.8,10.90375635]
[1723840974903,3.81644,2620.3,2619.8,3.81701]
[1723840975259,3.81644,2620.3,2619.8,3.817]
[1723840975409,3.81644,2620.3,2619.8,7.634]
[1723840975593,3.81644,2620.3,2619.8,3.817]
[1723840975798,7.63235,2620.5,2619.8,3.817]
[1723840976007,5.00565129,2620.5,2619.8,3.817]
[1723840976211,3.81629,2620.4,2619.8,3.817]
[1723840976511,3.81629,2620.4,2619.9,3.81692]
[1723840978348,5.80981293,2620.7,2620.2,3.81649]
[1723840978554,8.80962984,2620.7,2620.2,3.81649]
[1723840978849,6.81585,2620.7,2620.2,3.81642]
[1723840979052,6.08427,2620.9,2620.0,6.15902]
[1723840979053,5.80932984,2620.9,2620.3,3.81626]
[1723840979216,3.0,2620.8,2620.4,3.81619]
[1723840979402,3.0,2620.8,2620.3,3.81626]
[1723840980222,6.81562,2620.8,2620.3,3.81626]
[1723840980458,8.07811498,2620.8,2620.3,3.81626]
[1723840982441,3.0,2620.8,2620.4,3.81614]
[1723840982604,3.0,2620.8,2620.4,6.15844]
[1723840983212,3.0,2620.8,2620.4,3.81618]
[1723840983485,1.99388058,2620.9,2620.5,3.81605]
[1723840983699,8.80935058,2621.0,2620.5,3.81605]
[1723840983895,8.80935058,2621.0,2620.3,4.432116]
[1723840983896,7.29869264,2620.9,2620.4,3.8162]
[1723840984116,3.81548,2620.9,2620.4,3.8162]
[1723840984943,6.08399,2621.1,2620.7,3.81576]
[1723840984944,1.99388058,2621.1,2620.7,3.81576]
[1723840985137,5.80901058,2621.2,2620.7,6.15799]
[1723840985444,7.29826564,2621.2,2620.7,6.15799]
[1723840986234,11.11342564,2621.2,2620.7,6.15799]
[1723840986401,11.11294428,2621.2,2620.7,6.15799]
[1723840986844,7.29779428,2621.2,2620.7,6.15799]
[1723840987051,3.81519,2621.1,2620.7,6.15799]
[1723840987407,7.29779428,2621.2,2620.7,6.15799]
[1723840987946,5.30438506,2621.2,2620.7,6.15799]
[1723840988148,3.81513,2621.2,2620.7,6.15799]
[1723840988545,5.80853922,2621.2,2620.7,6.15799]
[1723840988751,3.81513,2621.2,2620.7,6.15799]
[1723840989058,3.81513,2621.2,2620.7,2.3423]
[1723840989660,3.81521,2621.1,2620.7,2.3423]
[1723840990215,7.6303,2621.2,2620.7,2.3423]
[1723840990439,7.63026,2621.2,2620.7,2.3423]
[1723840990636,9.11949692,2621.2,2620.7,2.3423]
[1723840990959,3.8152,2621.1,2620.7,2.3423]
[1723840991328,5.30436692,2621.2,2620.7,2.3423]
[1723840991727,6.2907,2621.0,2620.4,2.3424]
[1723840991939,3.81563,2620.8,2620.4,6.15861]
[1723840993458,6.2907,2621.0,2620.4,6.15861]
[1723840993623,7.22208868,2621.0,2620.4,6.15861]
[1723840993824,3.8155,2620.9,2620.4,6.15861]
[1723840994053,11.03752868,2621.0,2620.4,9.9747]
[1723840994352,3.81549,2620.9,2620.4,6.15849]
[1723840994549,4.74678868,2621.0,2620.4,9.97461]
[1723840994751,0.65024793,2620.9,2620.4,2.3424]
[1723840994973,0.65024793,2620.9,2620.3,3.81635]
[1723840994974,3.8157,2620.8,2620.3,3.81635]
[1723840995478,3.81584,2620.7,2620.2,6.07158]
[1723840995614,3.81621,2620.4,2619.9,6.21553]
[1723840995968,3.81643,2620.3,2619.7,6.21572]
[1723840996167,3.8165,2620.2,2619.7,2.3986]
[1723840996459,3.81681,2620.0,2619.5,3.81752]
[1723840996672,3.81681,2620.0,2619.4,3.81764]
[1723840996976,3.81681,2620.0,2619.0,2.4375]
[1723840996977,7.63456,2619.7,2619.0,2.4375]
[1723840997113,3.81742,2619.6,2619.0,2.4375]
[1723840997318,3.81723,2619.7,2619.1,3.81809]
[1723840997513,3.81723,2619.7,2619.1,7.63618]
[1723840997837,7.63455,2619.7,2619.1,3.81809]
[1723840998032,3.81723,2619.7,2619.1,3.81809]
[1723840999474,4.6738231,2619.7,2619.1,3.81809]
[1723840999658,3.81746,2619.6,2619.0,2.4375]
[1723841000040,3.81746,2619.6,2619.0,6.25574]
[1723841000251,3.8176,2619.5,2619.0,2.4375]
[1723841000569,2.2849,2619.3,2618.9,3.81826]
[1723841000742,2.2849,2619.3,2618.7,3.8186]
[1723841000943,3.81776,2619.4,2618.8,2.4959]
[1723841001147,3.81776,2619.4,2618.8,3.12735]
[1723841001370,7.63551,2619.4,2618.8,2.4959]
[1723841001657,7.63551,2619.4,2618.8,6.31441]
[1723841001658,3.81775,2619.4,2618.8,6.31441]
[1723841002016,7.6355,2619.4,2618.8,6.31441]
[1723841002216,3.81775,2619.4,2618.8,6.31441]
[1723841002517,7.63549,2619.4,2618.8,6.31441]
[1723841002720,3.81781,2619.3,2618.8,6.31441]
[1723841003264,3.81774,2619.4,2618.8,6.31441]
[1723841003612,3.81774,2619.4,2618.8,7.327709]
[1723841003952,7.63548,2619.4,2618.8,7.327709]
[1723841004332,3.81781,2619.3,2618.8,7.327709]
[1723841005456,3.81774,2619.4,2618.8,7.327709]
[1723841005646,2.4,2619.7,2618.8,7.327709]
[1723841005841,3.81776,2619.4,2618.8,7.327709]
[1723841006182,3.81782,2619.3,2618.8,7.327709]
[1723841006313,3.81762,2619.5,2618.9,3.81837]
[1723841006521,3.81775,2619.4,2618.9,3.81837]
[1723841006755,3.81782,2619.3,2618.8,3.509199]
[1723841007048,3.81782,2619.3,2618.8,6.31443]
[1723841007676,3.81762,2619.5,2618.9,6.2794]
[1723841007992,7.63524,2619.5,2618.9,6.2794]
[1723841008180,3.81761,2619.5,2618.9,6.2794]
[1723841008383,7.63521,2619.5,2618.9,6.2794]
[1723841008584,3.8176,2619.5,2618.9,6.2794]
[1723841008800,3.0,2619.8,2619.1,3.818]
[1723841009004,3.81702,2619.9,2619.4,3.81763]
[1723841009342,3.81708,2619.8,2619.3,6.27887]
[1723841009492,0.381702,2619.8,2619.3,10.09664]
[1723841009793,3.81702,2619.9,2619.3,10.09656]
[1723841009999,7.63405,2619.9,2619.3,6.27883]
[1723841010169,3.81702,2619.9,2619.3,6.27883]
[1723841010395,3.81702,2619.9,2619.3,6.88232277]
[1723841010715,3.81672,2620.1,2619.6,3.81737]
[1723841011256,3.81641,2620.3,2619.7,2.3591]
[1723841011463,3.81612,2620.5,2619.7,2.3591]
[1723841011464,7.6323,2620.5,2619.9,3.81693]
[1723841011686,6.17096,2620.6,2620.0,3.81672]
[1723841011870,3.81596,2620.6,2620.0,4.198392]
[1723841012078,3.81596,2620.6,2620.0,3.81672]
[1723841012405,3.81596,2620.6,2620.1,3.81662]
[1723841012558,3.81606,2620.5,2619.9,3.81681]
[1723841012958,2.0107662,2620.6,2620.0,2.2844]
[1723841013167,3.81607,2620.5,2620.0,2.2844]
[1723841013389,3.81628,2620.4,2619.9,3.81683]
[1723841013962,3.81607,2620.5,2619.9,7.63368]
[1723841014197,8.313837,2620.5,2619.9,3.81683]
[1723841014402,4.497677,2620.5,2620.0,3.81678]
[1723841014582,4.497677,2620.5,2619.9,3.81683]
[1723841014583,10.63173,2620.7,2620.1,3.81655]
[1723841015003,3.81593,2620.6,2620.1,3.81655]
[1723841015210,1.063179,2620.5,2620.1,3.81655]
[1723841015431,3.81593,2620.6,2620.1,6.15245]
[1723841015778,12.475832,2620.8,2620.4,3.81614]
[1723841016071,12.475832,2620.8,2620.3,3.81626]
[1723841016419,4.2177402,2620.7,2619.8,2.3518]
[1723841016734,3.81624,2620.4,2619.9,3.81685]
[1723841016875,4.2177402,2620.7,2620.0,3.81678]
[1723841016876,0.74677402,2620.6,2620.0,3.81678]
[1723841017227,6.16898,2620.7,2620.0,3.81678]
[1723841017228,3.81609,2620.5,2620.0,3.81678]
[1723841017515,6.16897,2620.7,2620.0,3.81678]
[1723841017516,3.81587,2620.7,2620.0,3.81678]
[1723841017809,3.81608,2620.5,2620.0,3.81678]
[1723841019120,7.63225,2620.5,2620.0,3.81678]
[1723841019319,3.81608,2620.5,2620.0,3.81678]